[Event "*** SCC Grand Prix: Titled Tuesday Blitz"]
[Site "Chess.com"]
[Date "2020.09.29"]
[Round "10"]
[White "OK97"]
[Black "tdf98pantani"]
[Result "0-1"]
[WhiteElo "2767"]
[BlackElo "2654"]
[TimeControl "180+1"]
[EndTime "11:55:19 PDT"]
[Termination "tdf98pantani won by resignation"]

1. d4 {[%clk 0:03:00.9]} 1... Nf6 {[%clk 0:02:59.3]} 2. c4 {[%clk 0:03:01.4]}
2... g6 {[%clk 0:02:59.7]} 3. Nc3 {[%clk 0:03:01.4]} 3... Bg7 {[%clk 0:03:00]}
4. Nf3 {[%clk 0:03:01.1]} 4... O-O {[%clk 0:02:59.7]} 5. g3 {[%clk 0:03:01.6]}
5... c6 {[%clk 0:02:58.1]} 6. Bg2 {[%clk 0:02:57.4]} 6... d5 {[%clk 0:02:57.9]}
7. cxd5 {[%clk 0:02:58.3]} 7... cxd5 {[%clk 0:02:58.1]} 8. Ne5 {[%clk 0:02:54]}
8... e6 {[%clk 0:02:57.8]} 9. O-O {[%clk 0:02:53.6]} 9... Nfd7 {[%clk
0:02:57.4]} 10. Nf3 {[%clk 0:02:52.4]} 10... Nc6 {[%clk 0:02:57.3]} 11. Bf4
{[%clk 0:02:49.4]} 11... b6 {[%clk 0:02:53.9]} 12. Rc1 {[%clk 0:02:35.7]} 12...
Bb7 {[%clk 0:02:52.8]} 13. Qd2 {[%clk 0:02:35.6]} 13... a6 {[%clk 0:02:46.7]}
14. Rfd1 {[%clk 0:02:32.2]} 14... Rc8 {[%clk 0:02:45.3]} 15. Bg5 {[%clk
0:02:25.4]} 15... f6 {[%clk 0:02:44.4]} 16. Bh6 {[%clk 0:02:24]} 16... Ne7
{[%clk 0:02:41.2]} 17. Bxg7 {[%clk 0:02:21.6]} 17... Kxg7 {[%clk 0:02:41.6]} 18.
Re1 {[%clk 0:02:19.2]} 18... Nf5 {[%clk 0:02:38.4]} 19. e4 {[%clk 0:02:15.5]}
19... Nd6 {[%clk 0:02:33.4]} 20. exd5 {[%clk 0:02:11.2]} 20... exd5 {[%clk
0:02:30.9]} 21. Re6 {[%clk 0:02:03.1]} 21... Ne4 {[%clk 0:02:27.4]} 22. Nxe4
{[%clk 0:01:45.2]} 22... dxe4 {[%clk 0:02:27.4]} 23. Rxc8 {[%clk 0:01:39.4]}
23... Qxc8 {[%clk 0:02:27.4]} 24. Nh4 {[%clk 0:01:21.3]} 24... Bd5 {[%clk
0:02:22]} 25. Rd6 {[%clk 0:01:14.2]} 25... Qb7 {[%clk 0:02:14.8]} 26. Qf4 {[%clk
0:01:10.2]} 26... Rf7 {[%clk 0:02:11.5]} 27. Bh3 {[%clk 0:01:05.3]} 27... Nf8
{[%clk 0:02:11]} 28. Rd8 {[%clk 0:01:02.1]} 28... Be6 {[%clk 0:01:59]} 29. Bg2
{[%clk 0:00:43.9]} 29... Bd5 {[%clk 0:01:44]} 30. Qd6 {[%clk 0:00:38.2]} 30...
Bxa2 {[%clk 0:01:30.4]} 31. d5 {[%clk 0:00:32]} 31... Qe7 {[%clk 0:01:25.8]} 32.
Qxb6 {[%clk 0:00:25.6]} 32... Qe5 {[%clk 0:01:21.8]} 33. d6 {[%clk 0:00:21.6]}
33... Rd7 {[%clk 0:01:19.1]} 34. Rxd7+ {[%clk 0:00:20.1]} 34... Nxd7 {[%clk
0:01:19.3]} 35. Qc7 {[%clk 0:00:21]} 35... Be6 {[%clk 0:01:18.4]} 36. b4 {[%clk
0:00:14.2]} 36... e3 {[%clk 0:01:16.4]} 37. Qc1 {[%clk 0:00:06.7]} 37... e2
{[%clk 0:01:05.3]} 38. Nf3 {[%clk 0:00:06.8]} 38... Qxd6 {[%clk 0:01:03.9]} 39.
Qe1 {[%clk 0:00:07.4]} 39... Qd1 {[%clk 0:01:01]} 40. h4 {[%clk 0:00:07.3]}
40... Ne5 {[%clk 0:01:01.1]} 0-1

[Event "*** SCC Grand Prix: Titled Tuesday Blitz"]
[Site "Chess.com"]
[Date "2020.09.29"]
[Round "10"]
[White "ajkom197"]
[Black "belisarius64"]
[Result "0-1"]
[WhiteElo "2474"]
[BlackElo "2670"]
[TimeControl "180+1"]
[EndTime "11:55:19 PDT"]
[Termination "belisarius64 won by resignation"]

1. c4 {[%clk 0:03:00.9]} 1... g6 {[%clk 0:02:57.9]} 2. g3 {[%clk 0:02:59.5]}
2... Bg7 {[%clk 0:02:56.1]} 3. Bg2 {[%clk 0:02:59.5]} 3... d6 {[%clk 0:02:48.7]}
4. e3 {[%clk 0:02:58.7]} 4... e5 {[%clk 0:02:47.7]} 5. Ne2 {[%clk 0:02:58.4]}
5... f5 {[%clk 0:02:47.5]} 6. Nbc3 {[%clk 0:02:57.1]} 6... Nf6 {[%clk 0:02:45]}
7. O-O {[%clk 0:02:56.7]} 7... O-O {[%clk 0:02:45.6]} 8. b4 {[%clk 0:02:54.8]}
8... a5 {[%clk 0:02:43.5]} 9. bxa5 {[%clk 0:02:52.5]} 9... Rxa5 {[%clk
0:02:26.8]} 10. d4 {[%clk 0:02:51.4]} 10... e4 {[%clk 0:02:26.5]} 11. Qb3 {[%clk
0:02:46.2]} 11... b6 {[%clk 0:02:03.9]} 12. Bd2 {[%clk 0:02:44.4]} 12... Be6
{[%clk 0:02:00.5]} 13. d5 {[%clk 0:02:37.1]} 13... Bd7 {[%clk 0:01:53.6]} 14. a4
{[%clk 0:02:34.9]} 14... Na6 {[%clk 0:01:50.7]} 15. Nb5 {[%clk 0:02:27.7]} 15...
Nc5 {[%clk 0:01:50.5]} 16. Qc2 {[%clk 0:02:26]} 16... Ra6 {[%clk 0:01:43.7]} 17.
Ned4 {[%clk 0:02:25.2]} 17... Ng4 {[%clk 0:01:37.7]} 18. a5 {[%clk 0:02:19.4]}
18... f4 {[%clk 0:01:26.6]} 19. axb6 {[%clk 0:02:02.6]} 19... Rxa1 {[%clk
0:01:18.6]} 20. Rxa1 {[%clk 0:02:01.7]} 20... fxe3 {[%clk 0:01:15.5]} 21. Bxe3
{[%clk 0:02:01]} 21... cxb6 {[%clk 0:01:03.2]} 22. Ra7 {[%clk 0:01:39.5]} 22...
Nxe3 {[%clk 0:00:58.3]} 23. fxe3 {[%clk 0:01:38.3]} 23... Qg5 {[%clk 0:00:42.3]}
24. Qe2 {[%clk 0:01:33.4]} 24... Bh6 {[%clk 0:00:40.9]} 25. Nc2 {[%clk
0:01:16.5]} 25... Bg4 {[%clk 0:00:37.7]} 26. Qe1 {[%clk 0:01:14.1]} 26... Qe5
{[%clk 0:00:18.2]} 27. h3 {[%clk 0:00:49.5]} 27... Bd7 {[%clk 0:00:12.6]} 28.
Nbd4 {[%clk 0:00:48.4]} 28... Nd3 {[%clk 0:00:09.7]} 29. Qe2 {[%clk 0:00:43.2]}
29... Rf7 {[%clk 0:00:06.3]} 30. Ne6 {[%clk 0:00:34.5]} 30... Bxe6 {[%clk
0:00:05.5]} 31. dxe6 {[%clk 0:00:35.4]} 31... Rxa7 {[%clk 0:00:05.3]} 32. Nd4
{[%clk 0:00:29.5]} 32... Qxg3 {[%clk 0:00:05.5]} 0-1

[Event "*** SCC Grand Prix: Titled Tuesday Blitz"]
[Site "Chess.com"]
[Date "2020.09.29"]
[Round "10"]
[White "MomchilPetkov"]
[Black "TrimitziosP7"]
[Result "0-1"]
[WhiteElo "2627"]
[BlackElo "2849"]
[TimeControl "180+1"]
[EndTime "11:55:20 PDT"]
[Termination "TrimitziosP7 won on time"]

1. e4 {[%clk 0:03:00.9]} 1... e5 {[%clk 0:02:57.8]} 2. Nf3 {[%clk 0:03:00.9]}
2... Nf6 {[%clk 0:02:56.7]} 3. d4 {[%clk 0:02:59.4]} 3... Nxe4 {[%clk
0:02:54.4]} 4. Bd3 {[%clk 0:02:59.1]} 4... d5 {[%clk 0:02:52.5]} 5. Nxe5 {[%clk
0:02:57.4]} 5... Bd6 {[%clk 0:02:47.3]} 6. O-O {[%clk 0:02:56.8]} 6... O-O
{[%clk 0:02:43.2]} 7. c4 {[%clk 0:02:56.9]} 7... c6 {[%clk 0:02:37.6]} 8. Nc3
{[%clk 0:02:43.4]} 8... Nxc3 {[%clk 0:02:30.3]} 9. bxc3 {[%clk 0:02:44.3]} 9...
Be6 {[%clk 0:02:26.7]} 10. cxd5 {[%clk 0:02:35.5]} 10... cxd5 {[%clk 0:02:27.6]}
11. Rb1 {[%clk 0:02:34.6]} 11... b6 {[%clk 0:02:21.1]} 12. Qh5 {[%clk
0:02:33.8]} 12... g6 {[%clk 0:02:13.6]} 13. Qh6 {[%clk 0:02:30.5]} 13... Nd7
{[%clk 0:02:09.9]} 14. Bg5 {[%clk 0:02:21]} 14... Be7 {[%clk 0:02:07.2]} 15.
Bxe7 {[%clk 0:02:13.6]} 15... Qxe7 {[%clk 0:02:08.1]} 16. Rfe1 {[%clk
0:02:09.8]} 16... Nxe5 {[%clk 0:02:04.8]} 17. Rxe5 {[%clk 0:02:03.6]} 17... Rac8
{[%clk 0:02:04.4]} 18. Rbe1 {[%clk 0:01:47]} 18... Qf6 {[%clk 0:01:53]} 19. Qd2
{[%clk 0:01:35.4]} 19... Rc7 {[%clk 0:01:43.6]} 20. R1e3 {[%clk 0:01:35.3]}
20... Rfc8 {[%clk 0:01:41.1]} 21. Bb1 {[%clk 0:01:32.7]} 21... b5 {[%clk
0:01:36.4]} 22. a3 {[%clk 0:01:31]} 22... a5 {[%clk 0:01:34.4]} 23. Rf3 {[%clk
0:01:19.1]} 23... Qe7 {[%clk 0:01:30.7]} 24. h3 {[%clk 0:01:01.4]} 24... Qxa3
{[%clk 0:01:25.7]} 25. c4 {[%clk 0:00:32.8]} 25... Qa1 {[%clk 0:01:14.6]} 26.
Re1 {[%clk 0:00:31.8]} 26... Rxc4 {[%clk 0:01:09.8]} 27. Kh2 {[%clk 0:00:13.1]}
27... Qxd4 {[%clk 0:01:07.5]} 28. Qxa5 {[%clk 0:00:13.1]} 28... b4 {[%clk
0:01:00.9]} 29. Bd3 {[%clk 0:00:04]} 29... Rc3 {[%clk 0:01:00.2]} 30. Qa6 {[%clk
0:00:04.3]} 30... R3c6 {[%clk 0:00:46.5]} 31. Qb5 {[%clk 0:00:03.7]} 31... Qb6
{[%clk 0:00:41.7]} 32. Qa4 {[%clk 0:00:03.3]} 32... b3 {[%clk 0:00:41.6]} 33.
Bb1 {[%clk 0:00:03.2]} 33... b2 {[%clk 0:00:37.8]} 0-1

[Event "*** SCC Grand Prix: Titled Tuesday Blitz"]
[Site "Chess.com"]
[Date "2020.09.29"]
[Round "10"]
[White "Lion-Al-Messi"]
[Black "KacperPolOK"]
[Result "1-0"]
[WhiteElo "2539"]
[BlackElo "2394"]
[TimeControl "180+1"]
[EndTime "11:55:24 PDT"]
[Termination "Lion-Al-Messi won by resignation"]

1. e4 {[%clk 0:03:00.9]} 1... c5 {[%clk 0:02:59.6]} 2. Nf3 {[%clk 0:03:00.3]}
2... Nc6 {[%clk 0:02:59.3]} 3. d4 {[%clk 0:03:00.9]} 3... cxd4 {[%clk
0:02:59.5]} 4. Nxd4 {[%clk 0:03:01.8]} 4... e5 {[%clk 0:02:59.7]} 5. Nb5 {[%clk
0:03:01.6]} 5... d6 {[%clk 0:02:59.4]} 6. N1c3 {[%clk 0:03:02.1]} 6... a6 {[%clk
0:02:58.8]} 7. Na3 {[%clk 0:03:01.8]} 7... b5 {[%clk 0:02:59.5]} 8. Nd5 {[%clk
0:03:02.1]} 8... Nge7 {[%clk 0:02:59]} 9. Bg5 {[%clk 0:03:00.3]} 9... Rb8 {[%clk
0:02:55.1]} 10. Be2 {[%clk 0:02:59.1]} 10... h6 {[%clk 0:02:54.6]} 11. Bf6
{[%clk 0:02:58]} 11... Be6 {[%clk 0:02:52.1]} 12. O-O {[%clk 0:02:50.9]} 12...
Bxd5 {[%clk 0:02:50.9]} 13. Bxe7 {[%clk 0:02:39.8]} 13... Nxe7 {[%clk
0:02:51.3]} 14. exd5 {[%clk 0:02:40.6]} 14... g6 {[%clk 0:02:50.4]} 15. c4
{[%clk 0:02:39.8]} 15... b4 {[%clk 0:02:49.4]} 16. Nc2 {[%clk 0:02:35.4]} 16...
Bg7 {[%clk 0:02:48.4]} 17. f4 {[%clk 0:02:29.9]} 17... exf4 {[%clk 0:02:45.8]}
18. Rxf4 {[%clk 0:02:30.8]} 18... Bxb2 {[%clk 0:02:44.4]} 19. Rb1 {[%clk
0:02:30.5]} 19... Bc3 {[%clk 0:02:44.3]} 20. Bd3 {[%clk 0:02:25]} 20... O-O
{[%clk 0:02:43.2]} 21. Qf3 {[%clk 0:02:24.7]} 21... f5 {[%clk 0:02:37.2]} 22.
Rf1 {[%clk 0:02:20.6]} 22... Kh7 {[%clk 0:02:33.6]} 23. Kh1 {[%clk 0:02:19.9]}
23... a5 {[%clk 0:02:33.8]} 24. g4 {[%clk 0:02:14.3]} 24... Be5 {[%clk
0:02:31.9]} 25. gxf5 {[%clk 0:02:12.8]} 25... Bxf4 {[%clk 0:02:30.9]} 26. fxg6+
{[%clk 0:02:12]} 26... Kg7 {[%clk 0:02:28.5]} 27. Nd4 {[%clk 0:02:04]} 27... Qb6
{[%clk 0:02:10.1]} 28. Ne6+ {[%clk 0:02:03.2]} 28... Kg8 {[%clk 0:02:10.7]} 29.
g7 {[%clk 0:01:57.8]} 29... Rf6 {[%clk 0:02:05.2]} 30. Nxf4 {[%clk 0:01:55.4]}
30... Qd4 {[%clk 0:02:01.6]} 31. Qg4 {[%clk 0:01:50.3]} 31... b3 {[%clk
0:01:53.1]} 32. axb3 {[%clk 0:01:49]} 32... Rxb3 {[%clk 0:01:50.3]} 33. Qd7
{[%clk 0:01:31.8]} 33... Rxf4 {[%clk 0:01:24.8]} 34. Qe8+ {[%clk 0:01:23.2]}
34... Kxg7 {[%clk 0:01:20.9]} 35. Qxe7+ {[%clk 0:01:23.3]} 35... Kg8 {[%clk
0:01:13.6]} 36. Qe6+ {[%clk 0:01:07]} 36... Kg7 {[%clk 0:00:58.9]} 37. Rg1+
{[%clk 0:01:01.9]} 37... Qxg1+ {[%clk 0:00:58.8]} 38. Kxg1 {[%clk 0:01:01.6]}
38... Rxd3 {[%clk 0:00:58.9]} 39. Qe7+ {[%clk 0:00:55.1]} 39... Rf7 {[%clk
0:00:56.5]} 40. Qxd6 {[%clk 0:00:52.5]} 40... Rdf3 {[%clk 0:00:56.6]} 41. Qe5+
{[%clk 0:00:51.5]} 41... Kg6 {[%clk 0:00:54.5]} 42. Qe4+ {[%clk 0:00:51.2]}
42... Kg5 {[%clk 0:00:54.2]} 43. d6 {[%clk 0:00:48.3]} 43... Rf1+ {[%clk
0:00:49.7]} 44. Kg2 {[%clk 0:00:48.4]} 44... R1f2+ {[%clk 0:00:46.8]} 45. Kg3
{[%clk 0:00:48.1]} 45... R7f3+ {[%clk 0:00:41.2]} 46. Qxf3 {[%clk 0:00:47.6]}
46... Rxf3+ {[%clk 0:00:42.1]} 47. Kxf3 {[%clk 0:00:48.5]} 47... Kf6 {[%clk
0:00:42.7]} 48. Ke4 {[%clk 0:00:47.1]} 48... a4 {[%clk 0:00:43.2]} 49. Kd3
{[%clk 0:00:46.9]} 49... Ke6 {[%clk 0:00:38.7]} 50. c5 {[%clk 0:00:46.5]} 1-0

[Event "*** SCC Grand Prix: Titled Tuesday Blitz"]
[Site "Chess.com"]
[Date "2020.09.29"]
[Round "10"]
[White "Sacbutt"]
[Black "profofchess"]
[Result "0-1"]
[WhiteElo "2274"]
[BlackElo "2366"]
[TimeControl "180+1"]
[EndTime "11:55:24 PDT"]
[Termination "profofchess won by resignation"]

1. e4 {[%clk 0:03:00.9]} 1... e6 {[%clk 0:02:58.4]} 2. d4 {[%clk 0:02:58.2]}
2... d5 {[%clk 0:02:58.4]} 3. exd5 {[%clk 0:02:58.8]} 3... exd5 {[%clk
0:02:58.4]} 4. Bd3 {[%clk 0:02:59.4]} 4... Nc6 {[%clk 0:02:58.6]} 5. Nf3 {[%clk
0:02:59.4]} 5... Bg4 {[%clk 0:02:57.1]} 6. c3 {[%clk 0:02:58.5]} 6... Bd6 {[%clk
0:02:54.8]} 7. O-O {[%clk 0:02:58]} 7... Nge7 {[%clk 0:02:54.1]} 8. Bg5 {[%clk
0:02:57.8]} 8... f6 {[%clk 0:02:53.3]} 9. Bh4 {[%clk 0:02:57.3]} 9... Qd7 {[%clk
0:02:41.1]} 10. Bg3 {[%clk 0:02:55.8]} 10... g5 {[%clk 0:02:31.3]} 11. Nbd2
{[%clk 0:02:50.3]} 11... O-O-O {[%clk 0:02:28.4]} 12. b4 {[%clk 0:02:49.4]}
12... Rde8 {[%clk 0:02:23.1]} 13. Nb3 {[%clk 0:02:47.2]} 13... h5 {[%clk
0:02:19.6]} 14. b5 {[%clk 0:02:35]} 14... Nd8 {[%clk 0:02:19.1]} 15. Bxd6 {[%clk
0:02:33.7]} 15... cxd6 {[%clk 0:02:16]} 16. a4 {[%clk 0:02:08.5]} 16... h4
{[%clk 0:02:08.9]} 17. a5 {[%clk 0:01:58.4]} 17... Kb8 {[%clk 0:02:03.8]} 18. a6
{[%clk 0:01:42.9]} 18... b6 {[%clk 0:02:03.7]} 19. Rb1 {[%clk 0:01:32.6]} 19...
h3 {[%clk 0:02:02.9]} 20. g3 {[%clk 0:01:31.6]} 20... Ne6 {[%clk 0:01:25.9]} 21.
Ne5 {[%clk 0:01:02.4]} 21... dxe5 {[%clk 0:01:18.5]} 22. Qxg4 {[%clk 0:01:01.9]}
22... e4 {[%clk 0:01:18.5]} 23. Bxe4 {[%clk 0:00:50.7]} 23... dxe4 {[%clk
0:01:13.7]} 24. Qxe4 {[%clk 0:00:30.5]} 24... Qd5 {[%clk 0:01:13.6]} 25. Rfe1
{[%clk 0:00:30.6]} 25... Qxe4 {[%clk 0:01:13.4]} 26. Rxe4 {[%clk 0:00:30.3]}
26... Nc7 {[%clk 0:01:02.2]} 27. c4 {[%clk 0:00:27.1]} 27... Nf5 {[%clk
0:01:00.2]} 28. Rbe1 {[%clk 0:00:26.9]} 28... Rxe4 {[%clk 0:00:59.5]} 29. Rxe4
{[%clk 0:00:27.8]} 29... Nd6 {[%clk 0:00:52]} 30. Re7 {[%clk 0:00:16.9]} 30...
Re8 {[%clk 0:00:44.1]} 31. Rxe8+ {[%clk 0:00:15.7]} 31... Ncxe8 {[%clk
0:00:44.3]} 32. Nd2 {[%clk 0:00:14.4]} 32... Nf5 {[%clk 0:00:44.2]} 33. Nb3
{[%clk 0:00:12.8]} 33... Ned6 {[%clk 0:00:43.3]} 34. c5 {[%clk 0:00:12.3]} 34...
Nxb5 {[%clk 0:00:43.1]} 35. cxb6 {[%clk 0:00:12.2]} 35... axb6 {[%clk
0:00:43.4]} 36. d5 {[%clk 0:00:12.5]} 36... Ka7 {[%clk 0:00:40.4]} 37. f4 {[%clk
0:00:12.5]} 37... g4 {[%clk 0:00:36.7]} 38. Nd2 {[%clk 0:00:09.5]} 38... Nbd6
{[%clk 0:00:35.3]} 39. Nb3 {[%clk 0:00:05.4]} 39... Kxa6 {[%clk 0:00:35.1]} 0-1

[Event "*** SCC Grand Prix: Titled Tuesday Blitz"]
[Site "Chess.com"]
[Date "2020.09.29"]
[Round "10"]
[White "Harry_Rakkel"]
[Black "SanchezKelvin"]
[Result "1-0"]
[WhiteElo "2557"]
[BlackElo "2399"]
[TimeControl "180+1"]
[EndTime "11:55:26 PDT"]
[Termination "Harry_Rakkel won on time"]

1. d4 {[%clk 0:03:00.9]} 1... Nf6 {[%clk 0:02:59.7]} 2. c4 {[%clk 0:03:00.6]}
2... g6 {[%clk 0:02:59.6]} 3. Nc3 {[%clk 0:02:59.8]} 3... Bg7 {[%clk 0:03:00.5]}
4. e4 {[%clk 0:02:59.6]} 4... d6 {[%clk 0:03:00.8]} 5. f3 {[%clk 0:02:59.8]}
5... O-O {[%clk 0:03:01]} 6. Nge2 {[%clk 0:03:00.3]} 6... c5 {[%clk 0:02:59.9]}
7. d5 {[%clk 0:03:00.2]} 7... e6 {[%clk 0:02:58.3]} 8. Ng3 {[%clk 0:02:59.6]}
8... exd5 {[%clk 0:02:59.2]} 9. cxd5 {[%clk 0:02:59.7]} 9... a6 {[%clk
0:02:54.6]} 10. a4 {[%clk 0:02:59.6]} 10... Qa5 {[%clk 0:02:48.4]} 11. Bd2
{[%clk 0:02:55.8]} 11... Qc7 {[%clk 0:02:44.7]} 12. Be2 {[%clk 0:02:54.4]} 12...
Nbd7 {[%clk 0:02:06.7]} 13. O-O {[%clk 0:02:51.7]} 13... Re8 {[%clk 0:02:06.8]}
14. Qc1 {[%clk 0:02:39.9]} 14... Rb8 {[%clk 0:02:04.8]} 15. Bh6 {[%clk
0:02:38.9]} 15... Bh8 {[%clk 0:02:03.8]} 16. Kh1 {[%clk 0:02:22.3]} 16... c4
{[%clk 0:02:02.9]} 17. Qf4 {[%clk 0:02:06.8]} 17... b5 {[%clk 0:01:53.4]} 18.
axb5 {[%clk 0:02:05.6]} 18... axb5 {[%clk 0:01:54.3]} 19. Qh4 {[%clk 0:02:03.3]}
19... b4 {[%clk 0:01:37.4]} 20. Nd1 {[%clk 0:02:02.2]} 20... c3 {[%clk
0:01:32.3]} 21. bxc3 {[%clk 0:02:01.6]} 21... bxc3 {[%clk 0:01:29.6]} 22. Rc1
{[%clk 0:02:00.7]} 22... Rb3 {[%clk 0:01:25.1]} 23. Ne3 {[%clk 0:01:57.1]} 23...
Qd8 {[%clk 0:01:10.3]} 24. Bg5 {[%clk 0:01:53.8]} 24... Qb6 {[%clk 0:01:03]} 25.
Nef5 {[%clk 0:01:47.5]} 25... Ba6 {[%clk 0:00:50.4]} 26. Be3 {[%clk 0:01:29.9]}
26... Qa5 {[%clk 0:00:29]} 27. Nxd6 {[%clk 0:01:16.7]} 27... Bxe2 {[%clk
0:00:27.9]} 28. Nxe2 {[%clk 0:01:15.4]} 28... Ra8 {[%clk 0:00:17.4]} 29. Nd4
{[%clk 0:01:13.8]} 29... Ra3 {[%clk 0:00:14.2]} 30. Nc6 {[%clk 0:01:12.4]} 30...
Qc7 {[%clk 0:00:13.9]} 31. Bf4 {[%clk 0:01:09.5]} 31... Nh5 {[%clk 0:00:13.7]}
32. Bh6 {[%clk 0:01:04.6]} 32... Qxd6 {[%clk 0:00:11.9]} 33. Ne7+ {[%clk
0:01:03.8]} 33... Qxe7 {[%clk 0:00:12]} 34. Qxe7 {[%clk 0:01:04.5]} 34... Ne5
{[%clk 0:00:09.9]} 35. d6 {[%clk 0:00:59.4]} 35... Bf6 {[%clk 0:00:09.4]} 36.
Qc7 {[%clk 0:00:57.8]} 36... Nd3 {[%clk 0:00:09.5]} 37. g4 {[%clk 0:00:53.7]}
37... Ng7 {[%clk 0:00:06.9]} 38. d7 {[%clk 0:00:48.5]} 38... Ne6 {[%clk
0:00:06.5]} 39. Qc8+ {[%clk 0:00:47.9]} 39... Nd8 {[%clk 0:00:04]} 40. g5 {[%clk
0:00:45.9]} 40... Be7 {[%clk 0:00:03.1]} 41. Rxc3 {[%clk 0:00:45.2]} 1-0

[Event "*** SCC Grand Prix: Titled Tuesday Blitz"]
[Site "Chess.com"]
[Date "2020.09.29"]
[Round "10"]
[White "QuintilianoR"]
[Black "Kumi29"]
[Result "0-1"]
[WhiteElo "2589"]
[BlackElo "2434"]
[TimeControl "180+1"]
[EndTime "11:55:27 PDT"]
[Termination "Kumi29 won on time"]

1. d4 {[%clk 0:03:00.9]} 1... Nf6 {[%clk 0:02:59.3]} 2. c4 {[%clk 0:03:00.7]}
2... e5 {[%clk 0:02:59.7]} 3. dxe5 {[%clk 0:02:59.6]} 3... Ng4 {[%clk
0:03:00.1]} 4. Bf4 {[%clk 0:02:59.5]} 4... Nc6 {[%clk 0:02:59.5]} 5. Nf3 {[%clk
0:02:59]} 5... Bb4+ {[%clk 0:03:00]} 6. Nc3 {[%clk 0:02:58]} 6... Bxc3+ {[%clk
0:02:57.8]} 7. bxc3 {[%clk 0:02:57.1]} 7... Qe7 {[%clk 0:02:57.8]} 8. Qd5 {[%clk
0:02:56.2]} 8... f6 {[%clk 0:02:57.9]} 9. exf6 {[%clk 0:02:53.8]} 9... Nxf6
{[%clk 0:02:58.8]} 10. Qd3 {[%clk 0:02:53.3]} 10... d6 {[%clk 0:02:51.2]} 11. e3
{[%clk 0:02:52.5]} 11... Ne5 {[%clk 0:02:49.3]} 12. Qc2 {[%clk 0:02:41]} 12...
b6 {[%clk 0:02:39.4]} 13. Be2 {[%clk 0:02:29.5]} 13... Bb7 {[%clk 0:02:39.1]}
14. Rd1 {[%clk 0:00:56.4]} 14... O-O-O {[%clk 0:02:20.4]} 15. Nd4 {[%clk
0:00:45.6]} 15... Kb8 {[%clk 0:01:59.7]} 16. O-O {[%clk 0:00:42.3]} 16... Rdg8
{[%clk 0:01:47.2]} 17. a4 {[%clk 0:00:38.8]} 17... a5 {[%clk 0:01:41]} 18. Bg3
{[%clk 0:00:35.8]} 18... g5 {[%clk 0:01:39.6]} 19. Qf5 {[%clk 0:00:22.7]} 19...
Nfd7 {[%clk 0:00:56]} 20. Nb5 {[%clk 0:00:15.1]} 20... h5 {[%clk 0:00:49.8]} 21.
f3 {[%clk 0:00:07.8]} 21... h4 {[%clk 0:00:45.2]} 22. Bf2 {[%clk 0:00:07.7]}
22... Rf8 {[%clk 0:00:44.8]} 23. Qc2 {[%clk 0:00:05.7]} 23... Nc5 {[%clk
0:00:42.6]} 24. e4 {[%clk 0:00:04.4]} 24... g4 {[%clk 0:00:41.2]} 25. Nd4 {[%clk
0:00:02.1]} 25... gxf3 {[%clk 0:00:38.4]} 26. gxf3 {[%clk 0:00:03]} 26... Rhg8+
{[%clk 0:00:32]} 27. Kh1 {[%clk 0:00:03.4]} 27... Nxf3 {[%clk 0:00:31.6]} 28.
Bxf3 {[%clk 0:00:01.7]} 28... Rxf3 {[%clk 0:00:31.8]} 29. Nxf3 {[%clk
0:00:02.6]} 29... Bxe4 {[%clk 0:00:31.9]} 30. Qe2 {[%clk 0:00:02.5]} 30... Rf8
{[%clk 0:00:21.8]} 0-1

[Event "*** SCC Grand Prix: Titled Tuesday Blitz"]
[Site "Chess.com"]
[Date "2020.09.29"]
[Round "10"]
[White "Margarita2907"]
[Black "northridgehawk"]
[Result "1-0"]
[WhiteElo "2208"]
[BlackElo "2293"]
[TimeControl "180+1"]
[EndTime "11:55:27 PDT"]
[Termination "Margarita2907 won by resignation"]

1. e4 {[%clk 0:03:00.9]} 1... e5 {[%clk 0:01:44.5]} 2. Nf3 {[%clk 0:02:59]} 2...
Nc6 {[%clk 0:01:38.1]} 3. Bc4 {[%clk 0:02:57.9]} 3... Nf6 {[%clk 0:01:36.7]} 4.
d3 {[%clk 0:02:57.1]} 4... Bc5 {[%clk 0:01:33.4]} 5. O-O {[%clk 0:02:56.7]} 5...
d6 {[%clk 0:01:32.6]} 6. c3 {[%clk 0:02:56]} 6... a6 {[%clk 0:01:31.9]} 7. a4
{[%clk 0:02:53.4]} 7... Ba7 {[%clk 0:01:31.6]} 8. Nbd2 {[%clk 0:02:49.2]} 8...
h6 {[%clk 0:01:30.7]} 9. h3 {[%clk 0:02:49.1]} 9... g5 {[%clk 0:01:30.9]} 10.
Nh2 {[%clk 0:02:45.6]} 10... g4 {[%clk 0:01:30.9]} 11. hxg4 {[%clk 0:02:41]}
11... Rg8 {[%clk 0:01:31]} 12. Qf3 {[%clk 0:02:28.7]} 12... Qe7 {[%clk
0:01:24.2]} 13. Nb3 {[%clk 0:02:02.1]} 13... Nxg4 {[%clk 0:01:22.1]} 14. Nxg4
{[%clk 0:01:58.5]} 14... Bxg4 {[%clk 0:01:23]} 15. Qg3 {[%clk 0:01:53.7]} 15...
O-O-O {[%clk 0:01:21.2]} 16. Qh2 {[%clk 0:01:50.8]} 16... h5 {[%clk 0:01:11.6]}
17. Be3 {[%clk 0:01:46.2]} 17... h4 {[%clk 0:01:03.7]} 18. Bxa7 {[%clk
0:01:44.7]} 18... Nxa7 {[%clk 0:01:04.6]} 19. f3 {[%clk 0:01:39.8]} 19... Bd7
{[%clk 0:01:02.7]} 20. Kf2 {[%clk 0:01:37.5]} 20... Rg7 {[%clk 0:00:59]} 21. d4
{[%clk 0:01:26.2]} 21... Rdg8 {[%clk 0:00:57.9]} 22. Rg1 {[%clk 0:01:24.5]}
22... Nc6 {[%clk 0:00:51.9]} 23. d5 {[%clk 0:01:16.3]} 23... Nd8 {[%clk
0:00:49.3]} 24. Nc1 {[%clk 0:01:09.5]} 24... f5 {[%clk 0:00:44.9]} 25. Bd3
{[%clk 0:01:04.8]} 25... Qg5 {[%clk 0:00:41]} 26. Ne2 {[%clk 0:01:01.4]} 26...
fxe4 {[%clk 0:00:35.3]} 27. Bxe4 {[%clk 0:00:59.6]} 27... Nf7 {[%clk 0:00:32.4]}
28. g3 {[%clk 0:00:54.2]} 28... hxg3+ {[%clk 0:00:27.3]} 29. Rxg3 {[%clk
0:00:53.2]} 29... Qd2 {[%clk 0:00:21.2]} 30. Rag1 {[%clk 0:00:53]} 30... Rh8
{[%clk 0:00:19.4]} 31. Qxh8+ {[%clk 0:00:46]} 31... Nxh8 {[%clk 0:00:18.9]} 32.
Rxg7 {[%clk 0:00:46]} 32... Nf7 {[%clk 0:00:17.9]} 33. Rxf7 {[%clk 0:00:44.8]}
33... b5 {[%clk 0:00:15.8]} 34. Rg8+ {[%clk 0:00:42.3]} 34... Kb7 {[%clk
0:00:15.4]} 35. Rxd7 {[%clk 0:00:42.9]} 35... bxa4 {[%clk 0:00:15.6]} 36. Rgg7
{[%clk 0:00:42.5]} 36... Qxb2 {[%clk 0:00:14.7]} 37. Rxc7+ {[%clk 0:00:42.6]}
37... Kb8 {[%clk 0:00:14.6]} 38. Rcf7 {[%clk 0:00:41.1]} 38... Qb6+ {[%clk
0:00:12.9]} 39. Kg2 {[%clk 0:00:40]} 39... Qc7 {[%clk 0:00:11]} 40. Rxc7 {[%clk
0:00:38.9]} 1-0